fUST/lending_fUST_20240220
["ID","MTS","AMOUNT","RATE_DAILY","PERIOD"]
[314574884,1708429832840,-1507.05163638,0.00020822,2]
[314574886,1708429832850,-500.0,0.00020822,2]
[314574888,1708429832860,-500.0,0.00020822,2]
[314574890,1708429832870,-1507.05163638,0.00020822,2]
[314574892,1708429832879,-500.0,0.00020822,2]
[314574894,1708429832889,-1507.05163638,0.00020822,2]
[314574897,1708429832898,-500.0,0.00020822,2]
[314574899,1708429832908,-1507.05163638,0.00020822,2]
[314574901,1708429832917,-500.0,0.00020822,2]
[314574903,1708429832927,-1507.05163638,0.00020822,2]
[314574905,1708429832936,-500.0,0.00020822,2]
[314574907,1708429832945,-1507.05163638,0.00020822,2]
[314574909,1708429832955,-500.0,0.00020822,2]
[314574911,1708429832964,-1507.05163638,0.00020822,2]
[314574913,1708429832974,-500.0,0.00020822,2]
[314574915,1708429832984,-1507.05163638,0.00020822,2]
[314574917,1708429832994,-500.0,0.00020822,2]
[314574919,1708429833004,-1507.05163638,0.00020822,2]
[314574921,1708429833018,-500.0,0.00020822,2]
[314574923,1708429833027,-1507.05163638,0.00020822,2]
[314574925,1708429833036,-500.0,0.00020822,2]
[314574927,1708429833046,-1507.05163638,0.00020822,2]
[314574929,1708429833055,-500.0,0.00020822,2]
[314574931,1708429833064,-1507.05163638,0.00020822,2]
[314574933,1708429833073,-500.0,0.00020822,2]
[314574935,1708429833084,-1507.05163638,0.00020822,2]
[314574937,1708429833096,-500.0,0.00020822,2]
[314574939,1708429833105,-1507.05163638,0.00020822,2]
[314574941,1708429833115,-500.0,0.00020822,2]
[314574944,1708429833124,-1507.05163638,0.00020822,2]
[314574946,1708429833134,-500.0,0.00020822,2]
[314574948,1708429833143,-1507.05163638,0.00020822,2]
[314574950,1708429833153,-500.0,0.00020822,2]
[314574952,1708429833162,-1507.05163638,0.00020822,2]
[314574953,1708429833171,-1507.05163638,0.00020822,2]
[314574956,1708429833181,-500.0,0.00020822,2]
[314574957,1708429833190,-1507.05163638,0.00020822,2]
[314574959,1708429833200,-500.0,0.00020822,2]
[314574961,1708429833209,-1507.05163638,0.00020822,2]
[314574963,1708429833218,-500.0,0.00020822,2]
[314574965,1708429833228,-500.0,0.00020822,2]
[314574967,1708429833237,-1507.05163638,0.00020822,2]
[314574969,1708429833246,-1507.05163638,0.00020822,2]
[314574971,1708429833256,-500.0,0.00020822,2]
[314574973,1708429833265,-1507.05163638,0.00020822,2]
[314574975,1708429833275,-500.0,0.00020822,2]
[314574977,1708429833284,-1507.05163638,0.00020822,2]
[314574979,1708429833294,-1507.05163638,0.00020822,2]
[314574981,1708429833303,-500.0,0.00020822,2]
[314574984,1708429833313,-1507.05163638,0.00020822,2]
[314574986,1708429833322,-616.16997038,0.00020822,2]
[314574987,1708429833331,-500.0,0.00020822,2]
[314574989,1708429833341,-1507.05163638,0.00020822,2]
[314574991,1708429833351,-500.0,0.00020822,2]
[314574993,1708429833360,-500.0,0.00020822,2]
[314574995,1708429833369,-1507.05163638,0.00020822,2]
[314574998,1708429833379,-500.0,0.00020822,2]
[314574999,1708429833388,-1507.05163638,0.00020822,2]
[314575001,1708429833397,-500.0,0.00020822,2]
[314575003,1708429833406,-1507.05163638,0.00020822,2]
[314575005,1708429833416,-500.0,0.00020822,2]
[314575007,1708429833425,-1507.05163638,0.00020822,2]
[314575010,1708429833435,-500.0,0.00020822,2]
[314575011,1708429833445,-1507.05163638,0.00020822,2]
[314575014,1708429833455,-1507.05163638,0.00020822,2]
[314575016,1708429833464,-500.0,0.00020822,2]
[314575018,1708429833473,-1507.05163638,0.00020822,2]
[314575039,1708429833664,-500.0,0.00020822,2]
[314575041,1708429833674,-1507.05163638,0.00020822,2]
[314575043,1708429833684,-1507.05163638,0.00020822,2]
[314575045,1708429833693,-500.0,0.00020822,2]
[314575047,1708429833703,-1507.05163638,0.00020822,2]
[314575049,1708429833713,-500.0,0.00020822,2]
[314575051,1708429833722,-1507.05163638,0.00020822,2]
[314575053,1708429833732,-500.0,0.00020822,2]
[314575055,1708429833742,-1507.05163638,0.00020822,2]
[314575057,1708429833751,-500.0,0.00020822,2]
[314575059,1708429833761,-1507.05163638,0.00020822,2]
[314575061,1708429833770,-1507.05163638,0.00020822,2]
[314575063,1708429833779,-1507.05163638,0.00020822,2]
[314575065,1708429833788,-1507.05163638,0.00020822,2]
[314575067,1708429833798,-1507.05163638,0.00020822,2]
[314575069,1708429833807,-1507.05163638,0.00020822,2]
[314575071,1708429833816,-1507.05163638,0.00020822,2]
[314575073,1708429833825,-500.0,0.00020822,2]
[314575075,1708429833834,-1507.05163638,0.00020822,2]
[314575078,1708429833844,-1507.05163638,0.00020822,2]
[314575079,1708429833854,-1507.05163638,0.00020822,2]
[314575081,1708429833862,-1507.05163638,0.00020822,2]
[314575083,1708429833872,-1507.05163638,0.00020822,2]
[314575086,1708429833881,-1507.05163638,0.00020822,2]
[314575087,1708429833891,-1507.05163638,0.00020822,2]
[314575089,1708429833900,-1507.05163638,0.00020822,2]
[314575091,1708429833909,-1507.05163638,0.00020822,2]
[314575093,1708429833918,-1507.05163638,0.00020822,2]
[314575095,1708429833927,-1469.37534547,0.00020822,2]
[314575097,1708429833937,-1469.37534547,0.00020822,2]
[314575099,1708429833946,-1469.37534547,0.00020822,2]
[314575101,1708429833955,-1469.37534547,0.00020822,2]
[314575103,1708429833964,-1469.37534547,0.00020822,2]
[314575105,1708429833974,-1469.37534547,0.00020822,2]
[314575107,1708429833983,-1469.37534547,0.00020822,2]
[314575109,1708429833992,-1469.37534547,0.00020822,2]
[314575111,1708429834001,-1469.37534547,0.00020822,2]
[314575113,1708429834012,-1469.37534547,0.00020822,2]
[314575115,1708429834021,-1469.37534547,0.00020822,2]
[314575117,1708429834030,-1469.37534547,0.00020822,2]
[314575119,1708429834039,-1469.37534547,0.00020822,2]
[314575121,1708429834048,-1469.37534547,0.00020822,2]
[314575122,1708429834058,-1469.37534547,0.00020822,2]
[314575124,1708429834067,-500.0,0.00020822,2]
[314575126,1708429834076,-1469.37534547,0.00020822,2]
[314575128,1708429834086,-500.0,0.00020822,2]
[314575130,1708429834097,-1469.37534547,0.00020822,2]
[314575133,1708429834107,-500.0,0.00020822,2]
[314575134,1708429834116,-1469.37534547,0.00020822,2]
[314575137,1708429834126,-500.0,0.00020822,2]
[314575139,1708429834135,-1469.37534547,0.00020822,2]
[314575140,1708429834144,-500.0,0.00020822,2]
[314575142,1708429834153,-1469.37534547,0.00020822,2]
[314575144,1708429834162,-500.0,0.00020822,2]
[314575146,1708429834171,-1469.37534547,0.00020822,2]
[314575148,1708429834181,-500.0,0.00020822,2]
[314575150,1708429834190,-1469.37534547,0.00020822,2]
[314575152,1708429834199,-500.0,0.00020822,2]
[314575154,1708429834208,-1469.37534547,0.00020822,2]
[314575156,1708429834217,-500.0,0.00020822,2]
[314575158,1708429834226,-1469.37534547,0.00020822,2]
[314575160,1708429834235,-450.0,0.00020822,2]
[314575162,1708429834244,-1959.16712723,0.00020822,2]
[314575164,1708429834253,-190.79278106,0.00020913,2]
[314575166,1708429834261,-508.69276818,0.00021057,2]
[314575168,1708429834270,-682.445782,0.00021133,2]
[314575170,1708429834279,-276000.0,0.00021157,2]
[314575172,1708429834289,-2542.88553066,0.00021157,2]
[314575174,1708429834298,-143294.29968496,0.00021257,2]
[314575176,1708429834307,-261.96959435,0.00021257,2]
[314575178,1708429834315,-203.1600239,0.0002137,2]
[314575180,1708429834325,-500.00000099,0.0002144,2]
[314575182,1708429834334,-50000.0,0.00021475,2]
[314575184,1708429834343,-50000.0,0.00021475,2]
[314575186,1708429834352,-50000.0,0.00021477,2]
[314575188,1708429834361,-50000.0,0.0002148,2]
[314575190,1708429834370,-12068.56076609,0.0002148,2]
[314575212,1708429834566,-6397.53192647,0.0002148,2]
[314575969,1708429843225,-1871.11580428,0.0002148,2]
[314576284,1708429846347,-6005.99116609,0.0002148,2]
[314576703,1708430304108,151.06949197,0.00023958,30]
[314576707,1708430680137,300.0,0.000221,10]
[314576708,1708430680808,303.332328,0.000236,10]
[314576759,1708431032426,-292.40995609,0.00019171,2]
[314576761,1708431032435,-307.09995528,0.00019172,2]
[314576763,1708431032445,-179.989503,0.00019178,2]
[314576765,1708431032455,-171.824104,0.00019184,2]
[314576767,1708431032464,-704.82531318,0.00019377,2]
[314576769,1708431032473,-6562.39665909,0.00019997,2]
[314576771,1708431032485,-686.19080936,0.00019997,2]
[314576773,1708431032498,-10703.67786114,0.00019997,2]
[314576775,1708431032508,-5000.0,0.00020239,2]
[314576777,1708431032517,-5000.0,0.00020241,2]
[314576779,1708431032527,-3812.71058566,0.00020241,2]
[314576781,1708431032537,-5000.0,0.00020241,2]
[314576783,1708431032547,-2536.73031906,0.00020241,2]
[314576785,1708431032556,-6900.2581543,0.00020246,2]
[314576787,1708431032566,-172.152563,0.00020258,2]
[314576789,1708431032575,-2420.31,0.00021333,3]
[314576791,1708431032586,-2302.54,0.00021333,3]
[314576793,1708431032596,-31633.73128159,0.00021343,2]
[314576796,1708431032608,-5506.85853467,0.00021343,2]
[314576863,1708431038407,-155.07598723,0.0001917,2]
[314576864,1708431038417,-99.05933284,0.00021343,2]
[314576874,1708431041600,-297.36586592,0.00021343,2]
[314576875,1708431041699,-1608.16849258,0.00021343,2]
[314576876,1708431041710,-391.3,0.00021343,2]
[314576887,1708431043415,-8069.11818847,0.00021343,2]
[314576904,1708431558622,190.927098,0.00018816,2]
[314576905,1708431720956,1000.0,0.00024,24]
[314576906,1708431790633,1000.0,0.00024,24]
[314576907,1708431808698,24900.0,0.00018898,2]
[314576908,1708431922656,-292.40995609,0.0001914,2]
[314576909,1708431922687,-261.63646538,0.00019141,2]
[314576910,1708431922718,-169.599211,0.00019178,2]
[314576911,1708431922748,-172.152563,0.00019178,2]
[314576912,1708431922778,-469.88354212,0.00019243,2]
[314576913,1708431922808,-264.2240658,0.0002015,2]
[314576914,1708431922840,-2071.74,0.00020238,3]
[314576915,1708431922871,-1438.71,0.00020238,3]
[314576916,1708431922902,-999.1,0.00020238,3]
[314576917,1708431922931,-1320.15,0.00020238,3]
[314576918,1708431922962,-155.07598723,0.00020245,2]
[314576919,1708431922994,-5000.0,0.00020246,2]
[314576920,1708431923212,-5000.0,0.00020246,2]
[314576921,1708431923250,-5000.0,0.00020246,2]
[314576922,1708431923283,-5000.0,0.00020246,2]
[314576923,1708431923313,-5000.0,0.00020246,2]
[314576924,1708431923346,-50000.0,0.00020248,2]
[314576925,1708431923378,-62266.4817747,0.00020248,2]
[314576926,1708431923409,-267.82899244,0.0002025,2]
[314576927,1708431923437,-4851.00744224,0.000205,2]
[314576973,1708432232656,-500.0,0.00019198,2]
[314576974,1708432232665,-155.08064193,0.00019198,2]
[314576975,1708432232675,-292.40995609,0.00019199,2]
[314576976,1708432232685,-399.6261735,0.000192,2]
[314576978,1708432232695,-207.50689,0.00019513,2]
[314576980,1708432232705,-302.41768373,0.00020147,2]
[314576982,1708432232715,-183.27101827,0.00020152,2]
[314576983,1708432232724,-56671.16368493,0.0002025,2]
[314576984,1708432232737,-5000.0,0.00020252,2]
[314576985,1708432232747,-264.22406578,0.00020567,2]
[314576986,1708432232756,-264.22406578,0.00020984,2]
[314576987,1708432232766,-623.30911634,0.0002108,2]
[314576988,1708432232775,-183.2710182,0.00021134,2]
[314576989,1708432232785,-1100.12,0.00021332,3]
[314576990,1708432232794,-19483.14233303,0.00021342,2]
[314576991,1708432232805,-19711.31174436,0.00021343,2]
[314576992,1708432232814,-281.13639612,0.000214,2]
[314576993,1708432232823,-264.22406578,0.000214,2]
[314576994,1708432232833,-500.0,0.00021401,2]
[314576995,1708432232842,-500.0,0.00021401,2]
[314576996,1708432232853,-500.0,0.00021401,2]
[314576997,1708432232863,-500.0,0.00021401,2]
[314576998,1708432232872,-550.00000001,0.00021401,2]
[314576999,1708432232881,-500.0,0.00021401,2]
[314577000,1708432232891,-500.0,0.00021401,2]
[314577001,1708432232900,-500.0,0.00021401,2]
[314577002,1708432232909,-417.26993999,0.00021401,2]
[314577003,1708432232918,-500.0,0.00021401,2]
[314577004,1708432232927,-500.0,0.00021401,2]
[314577005,1708432232937,-381.13342449,0.00021401,2]
[314577006,1708432232946,-184.29615422,0.00021401,2]
[314577007,1708432232955,-500.0,0.00021401,2]
[314577008,1708432232964,-500.0,0.00021401,2]
[314577009,1708432232973,-500.0,0.00021401,2]
[314577010,1708432232983,-500.0,0.00021401,2]
[314577011,1708432232992,-500.0,0.00021401,2]
[314577012,1708432233001,-500.0,0.00021401,2]
[314577013,1708432233010,-500.0,0.00021401,2]
[314577014,1708432233019,-500.0,0.00021401,2]
[314577015,1708432233028,-500.0,0.00021401,2]
[314577016,1708432233037,-500.0,0.00021401,2]
[314577017,1708432233046,-500.0,0.00021401,2]
[314577018,1708432233056,-500.0,0.00021401,2]
[314577019,1708432233065,-500.0,0.00021401,2]
[314577020,1708432233074,-500.0,0.00021401,2]
[314577021,1708432233084,-199.12491174,0.00021401,2]
[314577022,1708432233093,-500.0,0.00021401,2]
[314577023,1708432233104,-500.0,0.00021401,2]
[314577024,1708432233113,-500.0,0.00021401,2]
[314577025,1708432233124,-500.0,0.00021401,2]
[314577026,1708432233133,-500.0,0.00021401,2]
[314577027,1708432233143,-500.0,0.00021401,2]
[314577028,1708432233155,-500.0,0.00021401,2]
[314577029,1708432233164,-500.0,0.00021401,2]
[314577030,1708432233174,-500.0,0.00021401,2]
[314577031,1708432233184,-500.0,0.00021401,2]
[314577032,1708432233194,-500.0,0.00021401,2]
[314577033,1708432233203,-500.0,0.00021401,2]
[314577034,1708432233212,-500.0,0.00021401,2]
[314577035,1708432233222,-500.0,0.00021401,2]
[314577036,1708432233231,-500.0,0.00021401,2]
[314577037,1708432233240,-500.0,0.00021401,2]
[314577038,1708432233250,-500.0,0.00021401,2]
[314577039,1708432233259,-500.0,0.00021401,2]
[314577040,1708432233268,-500.0,0.00021401,2]
[314577041,1708432233278,-500.0,0.00021401,2]
[314577042,1708432233287,-500.0,0.00021401,2]
[314577043,1708432233296,-500.0,0.00021401,2]
[314577044,1708432233305,-500.0,0.00021401,2]
[314577045,1708432233314,-355.38475272,0.00021401,2]
[314577046,1708432233324,-500.0,0.00021401,2]
[314577047,1708432233333,-500.0,0.00021401,2]
[314577048,1708432233342,-500.0,0.00021401,2]
[314577049,1708432233351,-500.0,0.00021401,2]
[314577050,1708432233362,-500.0,0.00021401,2]
[314577051,1708432233371,-500.0,0.00021401,2]
[314577052,1708432233380,-500.0,0.00021401,2]
[314577053,1708432233390,-500.0,0.00021401,2]
[314577054,1708432233399,-500.0,0.00021401,2]
[314577055,1708432233408,-500.0,0.00021401,2]
[314577056,1708432233418,-500.0,0.00021401,2]
[314577057,1708432233427,-500.0,0.00021401,2]
[314577058,1708432233436,-500.0,0.00021401,2]
[314577059,1708432233446,-500.0,0.00021401,2]
[314577060,1708432233455,-500.0,0.00021401,2]
[314577061,1708432233465,-500.0,0.00021401,2]
[314577062,1708432233474,-500.0,0.00021401,2]
[314577063,1708432233483,-500.0,0.00021401,2]
[314577064,1708432233492,-500.0,0.00021401,2]
[314577065,1708432233502,-500.0,0.00021401,2]
[314577066,1708432233511,-500.0,0.00021401,2]
[314577067,1708432233520,-500.0,0.00021401,2]
[314577068,1708432233530,-500.0,0.00021401,2]
[314577069,1708432233539,-500.0,0.00021401,2]
[314577070,1708432233553,-500.0,0.00021401,2]
[314577071,1708432233562,-500.0,0.00021401,2]
[314577072,1708432233572,-500.0,0.00021401,2]
[314577073,1708432233581,-500.0,0.00021401,2]
[314577074,1708432233590,-500.0,0.00021401,2]
[314577075,1708432233599,-500.0,0.00021401,2]
[314577076,1708432233610,-500.0,0.00021401,2]
[314577077,1708432233619,-650.0,0.00021401,2]
[314577078,1708432233628,-500.0,0.00021401,2]
[314577079,1708432233638,-500.0,0.00021401,2]
[314577080,1708432233647,-500.0,0.00021401,2]
[314577081,1708432233656,-500.0,0.00021401,2]
[314577082,1708432233666,-500.0,0.00021401,2]
[314577083,1708432233675,-500.0,0.00021401,2]
[314577084,1708432233684,-500.0,0.00021401,2]
[314577085,1708432233693,-500.0,0.00021401,2]
[314577086,1708432233703,-500.0,0.00021401,2]
[314577087,1708432233712,-500.0,0.00021401,2]
[314577088,1708432233722,-500.0,0.00021401,2]
[314577089,1708432233734,-500.0,0.00021401,2]
[314577090,1708432233743,-500.0,0.00021401,2]
[314577091,1708432233753,-422.94000824,0.00021401,2]
[314577092,1708432233763,-500.0,0.00021401,2]
[314577093,1708432233773,-500.0,0.00021401,2]
[314577094,1708432233782,-250140.18566021,0.00021402,2]
[314577095,1708432233791,-23656.80033707,0.0002148,2]
[314577096,1708432233800,-50000.0,0.00021502,2]
[314577097,1708432233811,-50000.0,0.00021503,2]
[314577098,1708432233821,-205.356,0.00021577,2]
[314577099,1708432233830,-2830.04530841,0.00021814,2]
[314577100,1708432233840,-2955.75502071,0.00021816,2]
[314577101,1708432233849,-15279.8645101,0.00021817,2]
[314577102,1708432233860,-264.22406578,0.00021817,2]
[314577103,1708432233871,-24824.40840969,0.00021916,2]
[314577184,1708432241896,-916.77,0.00021907,3]
[314577186,1708432241905,-14028.81524419,0.00021916,2]
[314577382,1708432243662,-396.85223137,0.00021916,2]
[314577714,1708432246946,-16043.42931656,0.00021916,2]
[314577717,1708432246962,-20651.62068881,0.00021916,2]
[314577719,1708432246973,-501.02071736,0.00021917,2]
[314577721,1708432246984,-500.0,0.00021917,2]
[314577724,1708432246997,-500.0,0.00021917,2]
[314577726,1708432247009,-500.0,0.00021917,2]
[314577728,1708432247021,-500.0,0.00021917,2]
[314577731,1708432247033,-500.0,0.00021917,2]
[314577733,1708432247043,-500.0,0.00021917,2]
[314577735,1708432247053,-500.0,0.00021917,2]
[314577737,1708432247064,-500.0,0.00021917,2]
[314577739,1708432247076,-500.0,0.00021917,2]
[314577741,1708432247088,-641.64302008,0.00021917,2]
[314577744,1708432247103,-815.53,0.00021917,2]
[314577746,1708432247115,-500.0,0.00021917,2]
[314577749,1708432247127,-1436.84,0.00021917,2]
[314577751,1708432247138,-558.34197283,0.00021917,2]
[314577753,1708432247149,-500.0,0.00021917,2]
[314577755,1708432247160,-500.0,0.00021917,2]
[314577757,1708432247172,-500.0,0.00021917,2]
[314577759,1708432247183,-500.0,0.00021917,2]
[314577762,1708432247195,-500.0,0.00021917,2]
[314577764,1708432247206,-500.0,0.00021917,2]
[314577766,1708432247218,-500.0,0.00021917,2]
[314577768,1708432247228,-500.0,0.00021917,2]
[314577770,1708432247239,-306.76617681,0.00021917,2]
[314577774,1708432247257,-193.23382319,0.00021917,2]
[314577776,1708432247268,-500.0,0.00021917,2]
[314577778,1708432247280,-500.0,0.00021917,2]
[314577780,1708432247290,-500.0,0.00021917,2]
[314577782,1708432247302,-500.0,0.00021917,2]
[314577785,1708432247313,-500.0,0.00021917,2]
[314577787,1708432247324,-162.9,0.00021917,2]
[314577789,1708432247335,-500.0,0.00021917,2]
[314577791,1708432247346,-500.0,0.00021917,2]
[314577794,1708432247360,-500.0,0.00021917,2]
[314577796,1708432247370,-627.74,0.00021917,2]
[314577798,1708432247383,-500.0,0.00021917,2]
[314577800,1708432247394,-500.0,0.00021917,2]
[314577803,1708432247405,-500.0,0.00021917,2]
[314577805,1708432247415,-500.0,0.00021917,2]
[314577807,1708432247426,-500.0,0.00021917,2]
[314577809,1708432247437,-500.0,0.00021917,2]
[314577811,1708432247447,-531.54,0.00021917,2]
[314577813,1708432247458,-528.36434061,0.00021917,2]
[314577815,1708432247468,-500.0,0.00021917,2]
[314577818,1708432247479,-500.0,0.00021917,2]
[314577820,1708432247490,-500.0,0.00021917,2]
[314577822,1708432247500,-500.0,0.00021917,2]
[314577824,1708432247511,-500.0,0.00021917,2]
[314577826,1708432247522,-500.0,0.00021917,2]
[314577828,1708432247533,-581.27271086,0.00021917,2]
[314577831,1708432247544,-740.44,0.00021917,2]
[314577833,1708432247554,-500.0,0.00021917,2]
[314577834,1708432247564,-500.0,0.00021917,2]
[314577835,1708432247574,-500.0,0.00021917,2]
[314577836,1708432247585,-500.0,0.00021917,2]
[314577837,1708432247596,-317.35993342,0.00021917,2]
[314577839,1708432247606,-454.79876161,0.00021917,2]
[314577841,1708432247618,-500.0,0.00021917,2]
[314577843,1708432247629,-500.0,0.00021917,2]
[314577846,1708432247640,-500.0,0.00021917,2]
[314577848,1708432247652,-500.0,0.00021917,2]
[314577850,1708432247663,-594.83820886,0.00021917,2]
[314577853,1708432247674,-155.5648918,0.00021917,2]
[314577855,1708432247685,-500.0,0.00021917,2]
[314577857,1708432247695,-500.0,0.00021917,2]
[314577859,1708432247707,-200.0,0.00021917,2]
[314577861,1708432247718,-500.0,0.00021917,2]
[314577863,1708432247729,-638.50059309,0.00021917,2]
[314577866,1708432247743,-500.0,0.00021917,2]
[314577868,1708432247756,-500.0,0.00021917,2]
[314577870,1708432247766,-432.8063885,0.00021917,2]
[314577872,1708432247778,-754.98,0.00021917,2]
[314577874,1708432247789,-500.0,0.00021917,2]
[314577877,1708432247800,-500.0,0.00021917,2]
[314577879,1708432247811,-753.51,0.00021917,2]
[314577881,1708432247824,-500.0,0.00021917,2]
[314577883,1708432247836,-500.0,0.00021917,2]
[314577885,1708432247847,-505.59237559,0.00021917,2]
[314577888,1708432247860,-500.0,0.00021917,2]
[314577890,1708432247871,-500.0,0.00021917,2]
[314577892,1708432247882,-500.0,0.00021917,2]
[314577894,1708432247893,-500.0,0.00021917,2]
[314577896,1708432247903,-500.0,0.00021917,2]
[314577898,1708432247912,-635.54651384,0.00021917,2]
[314577900,1708432247922,-667.09,0.00021917,2]
[314577902,1708432247931,-500.0,0.00021917,2]
[314577904,1708432247940,-500.0,0.00021917,2]
[314577906,1708432247949,-500.0,0.00021917,2]
[314577908,1708432247958,-500.0,0.00021917,2]
[314577910,1708432247967,-500.0,0.00021917,2]
[314577912,1708432247976,-632.51,0.00021917,2]
[314577914,1708432247986,-558.24,0.00021917,2]
[314577916,1708432247995,-500.0,0.00021917,2]
[314577918,1708432248004,-200.91948973,0.00021917,2]
[314577920,1708432248013,-500.0,0.00021917,2]
[314577922,1708432248022,-500.0,0.00021917,2]
[314577950,1708432248261,-500.0,0.00021917,2]
[314577953,1708432248274,-500.0,0.00021917,2]
[314577955,1708432248283,-500.0,0.00021917,2]
[314577957,1708432248292,-500.0,0.00021917,2]
[314577959,1708432248301,-500.0,0.00021917,2]
[314577961,1708432248311,-500.0,0.00021917,2]
[314577963,1708432248320,-500.0,0.00021917,2]
[314577965,1708432248329,-2682.65,0.00021917,2]
[314577967,1708432248338,-506.0307741,0.00021917,2]
[314577969,1708432248347,-500.0,0.00021917,2]
[314577971,1708432248356,-500.0,0.00021917,2]
[314577973,1708432248367,-500.0,0.00021917,2]
[314577975,1708432248376,-500.0,0.00021917,2]
[314577977,1708432248386,-547.4,0.00021917,2]
[314577979,1708432248395,-701.69,0.00021917,2]
[314577981,1708432248403,-500.0,0.00021917,2]
[314577983,1708432248412,-500.0,0.00021917,2]
[314577985,1708432248421,-500.0,0.00021917,2]
[314577987,1708432248430,-500.0,0.00021917,2]
[314577989,1708432248440,-500.0,0.00021917,2]
[314577991,1708432248449,-500.0,0.00021917,2]
[314577993,1708432248458,-417.36840043,0.00021917,2]
[314577995,1708432248467,-500.0,0.00021917,2]
[314577997,1708432248476,-500.0,0.00021917,2]
[314577999,1708432248485,-500.0,0.00021917,2]
[314578001,1708432248495,-619.01631419,0.00021917,2]
[314578003,1708432248504,-500.0,0.00021917,2]
[314578005,1708432248513,-843.72,0.00021917,2]
[314578007,1708432248522,-500.0,0.00021917,2]
[314578009,1708432248531,-500.0,0.00021917,2]
[314578011,1708432248540,-500.0,0.00021917,2]
[314578013,1708432248549,-205.22485004,0.00021917,2]
[314578015,1708432248558,-151.0,0.00021917,2]
[314578017,1708432248567,-636.17,0.00021917,2]
[314578019,1708432248576,-500.0,0.00021917,2]
[314578020,1708432248586,-500.0,0.00021917,2]
[314578022,1708432248595,-500.0,0.00021917,2]
[314578024,1708432248604,-500.0,0.00021917,2]
[314578027,1708432248614,-500.0,0.00021917,2]
[314578029,1708432248623,-500.0,0.00021917,2]
[314578031,1708432248632,-500.0,0.00021917,2]
[314578033,1708432248641,-435.37974217,0.00021917,2]
[314578035,1708432248651,-735.92,0.00021917,2]
[314578037,1708432248660,-500.0,0.00021917,2]
[314578038,1708432248668,-502.39129394,0.00021917,2]
[314578040,1708432248678,-504.02859752,0.00021917,2]
[314578043,1708432248687,-500.0,0.00021917,2]
[314578045,1708432248698,-581.63580659,0.00021917,2]
[314578046,1708432248707,-3277.96,0.00021917,2]
[314578049,1708432248716,-3277.96,0.00021917,2]
[314578051,1708432248726,-3277.96,0.00021917,2]
[314578052,1708432248739,-3277.96,0.00021917,2]
[314578054,1708432248748,-3277.96,0.00021917,2]
[314578056,1708432248757,-1349.42162922,0.00021917,2]
[314578889,1708432765433,24900.0,0.00018984,2]
[314578890,1708432968348,2196.5663516,0.00018939,2]
[314578892,1708433296616,24900.0,0.00018745,2]
[314578920,1708433431822,-281.18949915,0.00019043,2]
[314578922,1708433431832,-292.40995609,0.00019043,2]
[314578924,1708433431841,-207.50689,0.00019049,2]
[314578926,1708433431850,-18557.6253368,0.00019062,2]
[314578928,1708433431859,-1711.77971729,0.00019817,2]
[314578930,1708433431868,-1161.14855822,0.0002,2]
[314578932,1708433431877,-154.90705577,0.00020177,2]
[314578934,1708433431886,-1005.52447354,0.00020276,2]
[314578936,1708433431895,-14645.16228117,0.00020277,2]
[314578938,1708433431905,-1087.17013674,0.00020279,2]
[314578940,1708433431914,-5000.0,0.00020279,2]
[314578942,1708433431923,-5000.0,0.00020279,2]
[314578944,1708433431932,-5000.0,0.0002028,2]
[314578946,1708433431941,-10423.33986205,0.0002028,2]
[314578948,1708433431951,-168.983147,0.00020805,2]